bitfinex/quotes_SOLUSD_20260108
["timestamp","ask_amount","ask_price","bid_price","bid_amount"]
[1767836257491,0.099,136.98,136.94,10.19449387]
[1767836257694,4.44953402,136.97,136.94,8.00855725]
[1767836257871,0.099,136.98,136.94,8.00855725]
[1767836258167,4.4495317,136.97,136.94,8.00855725]
[1767836258365,0.099,136.98,136.94,8.00855725]
[1767836258564,4.4501036,136.97,136.94,8.00855725]
[1767836258863,0.099,136.98,136.94,8.00855725]
[1767836259065,4.45010129,136.97,136.94,8.00855725]
[1767836259289,0.099,136.98,136.94,8.00855725]
[1767836259490,4.45050673,136.97,136.94,8.00855725]
[1767836259694,0.099,136.98,136.94,8.00855725]
[1767836259989,4.45050441,136.97,136.94,8.00855725]
[1767836260190,0.099,136.98,136.94,8.00855725]
[1767836260374,4.45097274,136.97,136.94,8.00855725]
[1767836260574,0.099,136.98,136.94,8.00855725]
[1767836260785,4.45097274,136.97,136.95,0.6638297]
[1767836261004,0.099,136.98,136.95,0.6638297]
[1767836261290,4.45097274,136.97,136.95,0.6638297]
[1767836261488,0.099,136.98,136.95,0.6638297]
[1767836261694,4.45151331,136.97,136.95,0.6638297]
[1767836261877,7.92022969,137.0,136.96,0.6638297]
[1767836262062,4.549862,136.99,136.96,0.6638297]
[1767836262267,0.099,136.99,136.96,0.6638297]
[1767836265680,0.099,136.99,136.95,7.96567608]
[1767836266895,4.45429052,136.98,136.96,0.6638297]
[1767836267196,0.62073886,136.99,136.96,0.6638297]
[1767836267492,4.45536015,136.98,136.96,0.6638297]
[1767836267666,0.62073886,136.99,136.96,0.6638297]
[1767836267868,4.45535783,136.98,136.96,0.6638297]
[1767836268063,0.62073886,136.99,136.96,0.6638297]
[1767836269882,2.80667548,136.99,136.96,0.6638297]
[1767836270278,0.099,136.98,136.95,0.6638297]
[1767836271496,0.61552147,136.97,136.94,0.6638297]
[1767836273687,2.80145809,136.97,136.94,0.6638297]
[1767836274092,10.1023951,136.97,136.94,0.6638297]
[1767836274284,2.29010183,136.96,136.92,0.2]
[1767836274477,0.61040791,136.95,136.92,0.8638297]
[1767836274793,2.79634453,136.95,136.92,0.8638297]
[1767836274994,0.61040791,136.95,136.92,0.8638297]
[1767836275877,0.62073886,136.96,136.92,8.16728016]
[1767836276086,0.62073886,136.96,136.93,0.6638297]
[1767836281093,2.80667548,136.96,136.93,0.6638297]
[1767836281587,10.10809293,136.96,136.93,0.6638297]
[1767836284703,0.62073886,136.96,136.93,0.6638297]
[1767836288105,2.80667548,136.96,136.93,0.6638297]
[1767836288602,10.10814021,136.96,136.93,0.6638297]
[1767836288809,7.92220359,136.96,136.93,0.6638297]
[1767836289005,10.10814021,136.96,136.93,0.6638297]
[1767836292801,0.099,136.95,136.92,0.85804363]
[1767836293405,0.099,136.95,136.92,8.16157551]
[1767836295009,0.62073886,136.96,136.93,0.65804363]
[1767836300815,11.33886478,136.96,136.93,0.65804363]
[1767836301396,7.92222243,136.96,136.93,0.65804363]
[1767836301698,11.33886478,136.96,136.93,0.65804363]
[1767836303616,0.61552147,136.94,136.92,0.2]
[1767836303911,0.10416521,136.93,136.92,0.2]
[1767836304217,3.52080756,136.93,136.9,0.85804363]
[1767836305298,0.10416521,136.93,136.91,0.65804363]
[1767836305495,4.03738121,136.94,136.91,0.65804363]
[1767836306117,0.62073886,136.94,136.91,0.65804363]
[1767836307001,0.62073886,136.95,136.92,0.65804363]
[1767836307208,11.33899255,136.96,136.92,0.65804363]
[1767836308217,0.099,136.95,136.92,0.65804363]
[1767836310833,0.099,136.95,136.91,7.96206254]
[1767836312016,0.099,136.95,136.92,0.7247587]
[1767836312626,0.62073886,136.96,136.93,0.7247587]
[1767836315217,4.03738121,136.96,136.93,0.7247587]
[1767836315423,0.62073886,136.98,136.94,0.7247587]
[1767836317221,0.62073886,136.98,136.95,0.7247587]
[1767836317411,4.03738121,136.99,136.95,0.7247587]
[1767836318829,6.6801107,137.02,137.0,0.7247587]
[1767836319015,3.81011834,137.03,137.0,0.69691569]
[1767836319203,3.81011834,137.03,136.98,14.0647587]
[1767836319402,3.41664235,137.04,136.99,7.2998029]
[1767836320229,3.41664235,137.03,136.99,7.2998029]
[1767836320610,3.41664235,137.02,136.98,7.30015478]
[1767836321122,3.41664235,137.01,136.99,0.7247587]
[1767836321503,0.02784301,137.02,136.99,0.7247587]
[1767836321704,3.41664235,137.01,136.99,0.7247587]
[1767836322026,0.02784301,137.02,136.99,0.7247587]
[1767836322326,3.41664235,137.01,136.99,0.7247587]
[1767836322533,3.41664235,137.0,136.99,0.7247587]
[1767836322910,3.41664235,137.01,136.99,0.7247587]
[1767836325836,3.41664235,137.01,136.99,0.7247587]
[1767836327612,3.44448536,137.02,136.99,0.7247587]
[1767836328423,3.41664235,137.02,136.99,0.7247587]
[1767836329330,3.44448536,137.03,136.99,0.7247587]
[1767836330527,0.02784301,137.03,136.99,0.7247587]
[1767836330730,3.41664235,137.03,136.99,0.7247587]
[1767836332728,10.71470512,137.03,136.99,0.7247587]
[1767836333433,10.74254813,137.03,136.99,0.7247587]
[1767836333633,3.41664235,137.02,136.99,0.7247587]
[1767836336135,10.7149239,137.02,136.99,0.7247587]
[1767836340221,3.44448536,137.03,136.99,0.7247587]
[1767836340932,0.02784301,137.02,136.97,24.05750993]
[1767836341123,0.02784301,137.02,136.97,24.78226863]
[1767836341531,0.02784301,137.02,136.98,3.41664235]
[1767836341835,0.02784301,137.02,136.98,4.14140105]
[1767836342041,7.32459452,137.05,137.01,0.69325798]
[1767836342228,25.53708285,137.06,137.02,0.69325798]
[1767836342433,28.98156821,137.06,137.02,0.69325798]
[1767836342936,28.9537252,137.06,137.02,0.69325798]
[1767836346637,28.98156821,137.06,137.02,0.69325798]
[1767836349951,10.74056007,137.06,137.02,0.69325798]
[1767836350251,10.74056007,137.06,136.98,18.24979657]
[1767836350252,0.05505501,137.02,136.97,0.66395295]
[1767836350543,3.41664235,137.0,136.97,0.66395295]
[1767836351032,3.22918994,137.0,136.97,0.66395295]
[1767836352654,3.44448536,137.01,136.97,0.66395295]
[1767836354150,3.44448536,137.01,136.97,0.63674095]
[1767836355735,10.74339688,137.01,136.97,0.63674095]
[1767836362634,2.21320866,137.01,136.97,0.63674095]
[1767836364156,9.5119974,137.01,136.97,0.63674095]
[1767836364826,2.18536565,137.02,136.98,0.66395295]
[1767836365054,2.18536565,137.04,137.0,0.66395295]
[1767836365257,2.24042066,137.04,137.0,0.66395295]
[1767836366452,9.53766588,137.04,137.0,0.66395295]
[1767836367059,2.24042066,137.04,137.01,0.66395295]
[1767836367256,2.18536565,137.03,137.01,0.66395295]
[1767836368447,2.18536565,137.05,137.01,7.96243804]
[1767836368644,2.18536565,137.05,137.02,0.66395295]
[1767836368842,2.27257764,137.05,137.02,0.63179597]
[1767836369342,2.27257764,137.05,137.01,7.29848509]
[1767836370258,2.18536565,137.04,137.01,7.29848509]
[1767836370650,2.18536565,137.04,137.0,7.29927007]
[1767836370943,0.08721199,137.03,137.0,7.96322302]
[1767836371140,0.08721199,137.03,137.0,7.29927007]
[1767836372263,0.08721199,137.03,137.0,0.70669383]
[1767836373241,0.08721199,137.03,137.0,8.00594984]
[1767836374065,2.27257764,137.04,137.0,8.00594984]
[1767836374364,2.27257764,137.04,137.01,0.70669383]
[1767836376574,2.18536565,137.04,137.01,0.70669383]
[1767836376863,2.27257764,137.03,137.0,0.70669383]
[1767836377042,0.08721199,137.01,136.97,14.02669383]
[1767836377373,2.27257764,137.01,136.98,0.70669383]
[1767836377549,2.18536565,137.01,136.98,0.70669383]
[1767836378768,2.18536565,137.0,136.97,0.70669383]
[1767836379866,2.27257764,137.01,136.97,0.70669383]
[1767836380248,2.18536565,137.0,136.97,0.70669383]
[1767836385567,9.48469267,137.0,136.97,0.70669383]
[1767836385767,2.18536565,137.0,136.97,0.70669383]
[1767836386151,2.27257764,137.01,136.97,0.70669383]
[1767836387776,9.57145142,137.01,136.97,0.70669383]
[1767836387970,2.27257764,137.01,136.98,0.70669383]
[1767836388179,9.57145901,137.01,136.98,0.70669383]
[1767836398582,7.38609336,137.01,136.98,0.70669383]
[1767836398769,9.57145901,137.01,136.98,0.70669383]
[1767836399477,9.48424702,137.01,136.98,0.70669383]
[1767836399681,2.18536565,137.01,136.98,0.70669383]
[1767836399882,2.27257764,137.01,136.98,0.70669383]
[1767836400084,7.29873948,137.01,136.98,0.70669383]
[1767836400581,7.29873948,137.01,136.97,0.70669383]
[1767836400582,0.08721199,137.0,136.97,0.70669383]
[1767836400766,9.57131712,137.01,136.97,0.70669383]
[1767836401684,0.08721199,137.0,136.97,0.70669383]
[1767836401883,9.48410513,137.01,136.97,0.70669383]
[1767836402094,9.48410513,137.01,136.95,0.6727495]
[1767836402095,0.08721199,136.98,136.95,0.6727495]
[1767836402380,2.18536565,136.96,136.94,0.6727495]
[1767836402887,0.08721199,136.98,136.94,0.6727495]
[1767836403073,2.27257764,136.98,136.94,0.6727495]
[1767836403472,0.08721199,136.98,136.94,0.6727495]
[1767836403661,9.5733274,136.98,136.94,0.6727495]
[1767836404287,2.18536565,136.97,136.94,0.6727495]
[1767836405090,9.48623701,136.97,136.94,0.6727495]
[1767836406186,2.18536565,136.96,136.94,0.6727495]
[1767836408696,2.15536565,136.96,136.95,0.67244944]
[1767836410902,2.12536565,136.96,136.95,0.67244944]
[1767836413787,9.42676751,136.96,136.95,0.67244944]
[1767836413994,9.42676751,136.96,136.92,0.67244944]
[1767836414190,2.18536565,136.95,136.92,0.67244944]
[1767836414397,2.15536565,136.94,136.93,0.67244944]
[1767836414602,2.12536565,136.94,136.93,0.67244944]
[1767836415175,2.12536565,136.94,136.91,13.34]
[1767836415176,2.12536565,136.94,136.92,0.67244944]
[1767836417072,9.48732632,136.95,136.92,0.67244944]
[1767836418497,2.18536565,136.95,136.92,0.67244944]
[1767836418679,9.57420727,136.96,136.92,0.67244944]
[1767836420903,0.08721199,136.96,136.92,0.67244944]
[1767836421104,2.27257764,136.96,136.92,0.67244944]
[1767836424505,10.80579163,136.96,136.92,0.67244944]
[1767836426808,0.08721199,136.95,136.92,0.67244944]
[1767836427307,10.71857964,136.96,136.92,0.67244944]
[1767836427809,10.80579163,136.96,136.92,0.67244944]
[1767836430606,10.71857964,136.96,136.92,0.67244944]
[1767836431211,10.80579163,136.96,136.92,0.67244944]
[1767836432707,7.38871818,136.96,136.92,0.67244944]
[1767836432912,3.41707345,136.95,136.92,0.67244944]
[1767836436329,3.50428544,136.96,136.92,0.67244944]
[1767836440805,0.08721199,136.95,136.92,0.67244944]
[1767836444413,10.80576736,136.96,136.92,0.67244944]
[1767836450340,7.38869391,136.96,136.92,0.67244944]
[1767836450512,0.08721199,136.95,136.92,0.67244944]
[1767836451809,10.80576736,136.96,136.92,0.67244944]
[1767836455139,0.08721199,136.95,136.92,0.67244944]
[1767836456535,10.71855537,136.96,136.92,0.67244944]
[1767836456738,7.30148192,136.96,136.92,0.67244944]
[1767836457036,10.71855537,136.96,136.92,0.67244944]
[1767836457436,10.80576736,136.96,136.92,0.67244944]
[1767836458034,7.30054756,136.98,136.93,0.68254249]
[1767836458235,10.71762101,136.98,136.93,0.68254249]
[1767836459829,10.71762101,136.98,136.94,0.68254249]
[1767836460826,3.41707345,136.97,136.94,0.68254249]
[1767836461014,3.41707345,136.97,136.93,7.98532553]
[1767836461015,3.50428544,136.97,136.93,7.98532553]
[1767836461219,3.50428544,136.97,136.94,0.68254249]
[1767836462028,3.41707345,136.97,136.94,0.68254249]
[1767836464237,3.50428544,136.97,136.94,0.68254249]
[1767836466146,3.41707345,136.97,136.94,0.68254249]
[1767836469148,3.41707345,136.98,136.95,0.66547653]
[1767836469330,3.41707345,136.99,136.95,0.66547653]
[1767836469528,3.41707345,137.0,136.95,0.66547653]
[1767836469744,10.8030439,137.01,136.96,0.66547653]
[1767836470250,3.41707345,137.0,136.96,0.66547653]
[1767836471136,10.80361021,137.0,136.96,0.66547653]
[1767836471526,10.71639822,137.0,136.96,0.66547653]
[1767836472848,10.71639822,137.0,136.97,0.66547653]
[1767836473456,10.71600852,137.01,136.97,0.66547653]
[1767836473656,10.80322051,137.01,136.97,0.66547653]
[1767836474234,0.08721199,137.0,136.97,0.66547653]
[1767836476735,10.80322051,137.01,136.97,0.66547653]
[1767836477260,10.71600852,137.01,136.97,0.66547653]
[1767836482857,10.80322051,137.01,136.97,0.66547653]
[1767836483063,3.41707345,137.0,136.97,0.66547653]
[1767836484367,3.50428544,137.01,136.97,0.66547653]
[1767836484543,2.272658,137.01,136.97,0.66547653]
[1767836485566,2.18544601,137.0,136.97,0.66547653]
[1767836489271,9.4847458,137.0,136.97,0.66547653]
[1767836490171,2.272658,136.99,136.95,0.66547653]
[1767836490957,0.08721199,136.98,136.95,0.66547653]
[1767836492473,9.48544512,136.99,136.95,0.66547653]
[1767836492675,9.57265711,136.99,136.95,0.66547653]
[1767836492852,9.48544512,136.99,136.95,0.66547653]
[1767836493057,0.08721199,136.98,136.95,0.66547653]
[1767836493454,9.48544512,136.99,136.95,0.66547653]
[1767836495980,9.57265711,136.99,136.95,0.66547653]
[1767836499673,0.08721199,136.98,136.95,0.66547653]
[1767836499875,0.08721199,136.99,136.95,0.66547653]
[1767836500081,2.272658,136.99,136.95,0.66547653]
[1767836500269,0.08721199,136.98,136.95,0.66547653]
[1767836500474,2.272658,136.98,136.95,0.66547653]
[1767836504195,2.18544601,136.98,136.95,0.66547653]
[1767836506594,9.57289199,136.99,136.95,0.66547653]
[1767836515116,2.18544601,136.98,136.95,0.66547653]
[1767836516709,2.272658,136.98,136.95,0.66547653]
[1767836517098,2.272658,136.97,136.94,0.66438744]
[1767836517314,9.57364983,136.97,136.94,0.66438744]
[1767836519116,1e-08,137.05,137.03,0.66438744]
[1767836519412,0.81031813,137.1,137.04,2.18544601]
[1767836519619,3.77495073,137.08,137.05,2.18544601]
[1767836519816,0.71031813,137.09,137.05,2.18544601]
[1767836520228,0.71031813,137.09,137.04,2.18544601]
[1767836520522,8.00515752,137.09,137.02,7.29820464]
[1767836520702,0.71031813,137.07,137.02,5.10504748]
[1767836520903,2.89576414,137.07,137.02,2.18544601]
[1767836521211,2.89576414,137.07,137.03,0.66438744]
[1767836524026,0.71031813,137.07,137.03,0.66438744]
[1767836526936,10.19136065,137.07,137.03,0.66438744]
[1767836534333,8.00591464,137.07,137.03,0.66438744]
[1767836538609,0.71031813,137.07,137.03,0.66438744]
[1767836544317,8.00591764,137.07,137.03,0.66438744]
[1767836545644,0.67305978,137.06,137.03,0.66438744]
[1767836546537,7.96865929,137.07,137.03,0.66438744]
[1767836549230,0.67305978,137.04,137.01,0.69485949]
[1767836550747,4.08412919,137.04,137.01,0.69485949]
[1767836552759,0.67305978,137.04,137.01,0.69485949]
[1767836553145,10.70775159,137.05,137.01,0.69485949]
[1767836553343,11.3925379,137.05,137.01,0.69485949]
[1767836557254,0.68478631,137.04,137.01,0.69485949]
[1767836558759,0.68478631,137.06,137.02,0.70260873]
[1767836558939,4.09585572,137.06,137.02,0.70260873]
[1767836559258,0.68478631,137.05,137.02,0.70260873]
[1767836563336,0.68478631,137.04,137.01,0.70260873]
[1767836564258,4.09585572,137.05,137.01,0.70260873]
[1767836564858,4.09585572,137.05,137.02,0.70260873]
[1767836568162,0.68478631,137.05,137.02,0.70260873]
[1767836572265,0.68478631,137.02,136.96,0.70260873]
[1767836572455,3.41106941,136.99,136.96,0.70260873]
[1767836572661,3.41106941,136.99,136.97,0.70260873]
[1767836572964,4.09585572,137.0,136.97,0.70260873]
[1767836573166,4.09585572,137.0,136.97,0.09509087]
[1767836574742,0.68478631,136.99,136.95,7.30193501]
[1767836575175,0.68478631,136.99,136.96,8.0038757]
[1767836575866,0.65478624,136.99,136.96,8.0038757]
[1767836576169,0.62478622,136.99,136.96,8.0038757]
[1767836576748,13.32,137.01,136.98,0.70260873]
[1767836577070,10.70949291,137.02,136.98,0.70260873]
[1767836577277,24.02949291,137.02,136.98,0.70260873]
[1767836577874,10.70949291,137.02,136.98,0.70260873]
[1767836578049,0.68478631,137.01,136.98,0.70260873]
[1767836578567,0.68478631,137.01,136.97,8.00346703]
[1767836587382,0.68478631,137.01,136.98,0.69414854]
[1767836587572,0.68478631,137.01,136.97,7.99500684]
[1767836592005,0.68478631,137.01,136.98,0.69414854]
[1767836594107,0.68478631,137.01,136.98,7.99439705]
[1767836599617,0.69527536,137.02,136.99,0.69414854]
[1767836601007,0.69527536,137.02,136.98,7.99439705]
[1767836601307,0.69527536,137.01,136.98,7.99439705]
[1767836602311,0.69527536,137.01,136.98,0.69414854]
[1767836610912,0.69527536,137.01,136.97,7.99478418]
[1767836611715,0.69527536,137.01,136.98,0.69414854]
[1767836612412,10.1971083,137.02,136.98,0.69414854]
[1767836613215,0.71414123,137.01,136.98,0.72457376]
[1767836617710,8.01237106,137.02,136.98,0.72457376]
[1767836620831,8.01289347,137.01,136.98,0.72457376]
[1767836621023,0.71414123,137.0,136.97,0.72457376]
[1767836622325,0.71414123,136.99,136.96,0.72457376]
[1767836622523,0.71414123,136.98,136.96,0.72457376]
[1767836623326,2.89887847,136.99,136.96,0.72457376]
[1767836623520,0.71414123,136.98,136.95,58.02625757]
[1767836628630,2.89887847,136.99,136.96,0.72457376]
[1767836630641,0.71414123,136.99,136.96,0.72457376]
[1767836631733,0.71414123,136.99,136.95,57.30177386]
[1767836631937,0.71414123,136.98,136.95,50.72457376]
[1767836633835,0.71414123,136.97,136.95,50.72457376]
[1767836636625,0.68414121,136.97,136.95,50.72457376]
[1767836639146,2.89887847,136.98,136.95,50.72457376]
[1767836641342,0.71414123,136.97,136.95,50.72457376]
[1767836641557,0.71414123,136.97,136.95,50.0]
[1767836642242,0.69776435,136.96,136.95,50.0]
[1767836642443,0.66776436,136.96,136.95,50.0]
[1767836642825,0.66776436,136.96,136.95,49.275]
[1767836643440,2.18473724,136.97,136.95,49.275]
[1767836643852,9.48568506,136.97,136.95,49.275]
[1767836644231,9.48568506,136.97,136.95,46.2462346]
[1767836644554,9.45578338,136.97,136.95,45.644824]
[1767836645123,7.30094782,136.97,136.95,45.644824]
[1767836645448,9.48568506,136.97,136.95,45.644824]
[1767836645957,2.18473724,136.96,136.95,45.644824]
[1767836647225,2.18473724,136.96,136.95,45.49740729]
[1767836647428,2.18473724,136.96,136.95,45.43422855]
[1767836659961,2.18473724,136.96,136.95,46.09178298]
[1767836660255,2.18473724,136.96,136.95,45.43422855]
[1767836660760,22.82568506,136.97,136.95,45.43422855]
[1767836662159,20.64094782,136.97,136.95,45.43422855]
[1767836662464,22.82568506,136.97,136.95,45.43422855]
[1767836663764,20.64094782,136.97,136.95,45.43422855]
[1767836664073,22.82568506,136.97,136.95,45.43422855]
[1767836665565,2.18473724,136.96,136.95,45.43422855]
[1767836667160,2.18473724,136.96,136.92,7.96105564]
[1767836667573,2.18473724,136.96,136.93,0.65755443]
[1767836668659,3.41691423,136.96,136.93,0.65755443]
[1767836670066,24.05786205,136.97,136.93,0.65755443]
[1767836671462,20.64094782,136.97,136.93,0.65755443]
[1767836671759,24.05786205,136.97,136.93,0.65755443]
[1767836674364,3.41691423,136.96,136.93,0.65755443]
[1767836677166,24.05786205,136.97,136.93,0.65755443]
[1767836698682,18.24999499,136.99,136.93,0.65755443]
[1767836698981,3.41691423,136.97,136.93,0.65755443]
[1767836699173,3.41691423,136.96,136.93,0.65755443]
[1767836699365,3.41691423,136.97,136.93,0.65755443]
[1767836700882,38.89136795,136.98,136.92,0.65510966]
[1767836700883,3.41691423,136.95,136.92,0.65510966]
[1767836701174,16.75691423,136.95,136.91,0.65510966]
[1767836701361,3.41691423,136.94,136.91,0.65510966]
[1767836704971,3.51591423,136.92,136.9,0.2]
[1767836705162,4.06646279,136.91,136.89,0.2]
[1767836705363,3.41691423,136.9,136.89,0.0944389]
[1767836706185,10.72116228,136.91,136.89,0.0944389]
[1767836707063,10.72116228,136.91,136.89,0.79621342]
[1767836710496,10.69116229,136.91,136.89,0.79621342]
[1767836713186,3.41691423,136.9,136.88,0.90177452]
[1767836713376,3.41691423,136.89,136.88,0.2]
[1767836713574,3.41691423,136.89,136.88,0.90177452]
[1767836714069,3.41691423,136.89,136.88,0.2]
[1767836714269,3.9619573,136.89,136.87,0.2]
[1767836716377,3.41691423,136.89,136.87,0.90177452]
[1767836717682,3.51591423,136.89,136.87,0.90177452]
[1767836718084,3.41691423,136.89,136.87,0.90177452]
[1767836718283,3.51591423,136.89,136.87,0.2]
[1767836718671,3.41691423,136.89,136.87,0.90177452]
[1767836725090,3.41691423,136.88,136.87,0.90177452]
[1767836725277,3.3869142,136.88,136.87,0.90177452]
[1767836725478,3.35691419,136.88,136.87,0.90177452]
[1767836725777,3.35691419,136.88,136.87,0.2]
[1767836727598,10.66258338,136.88,136.86,0.90177452]
[1767836727791,3.41691423,136.87,136.86,0.90177452]
[1767836727993,3.38691424,136.87,136.86,0.90177452]
[1767836729297,10.72258342,136.88,136.86,0.90177452]
[1767836729495,11.26762649,136.88,136.86,0.2]
[1767836729894,3.41691423,136.87,136.84,0.2]
[1767836730086,3.41691423,136.86,136.84,0.90177452]
[1767836730292,3.41691423,136.86,136.84,0.2]
[1767836730602,2.33958063,136.86,136.84,0.2]
[1767836730786,0.099,136.85,136.84,0.05045144]
[1767836730986,0.06900001,136.85,136.84,0.05045144]
[1767836734093,2.25903208,136.85,136.84,0.05045144]
[1767836734406,7.30696598,136.86,136.83,0.7070651]
[1767836734608,2.19003207,136.84,136.83,1e-08]
[1767836734778,2.19003207,136.84,136.82,0.90706509]
[1767836736082,9.49791074,136.84,136.82,0.90706509]
[1767836740900,22.83737872,136.85,136.82,0.90706509]
[1767836741503,2.19003207,136.84,136.82,0.90706509]
[1767836742386,22.83737872,136.85,136.82,0.90706509]
[1767836742590,20.64734665,136.85,136.82,0.90706509]
[1767836742922,20.64734665,136.85,136.83,0.70706509]
[1767836743119,12.615,136.85,136.82,0.2]
[1767836743324,9.49643095,136.87,136.82,7.50886077]
[1767836743510,10.17875375,136.87,136.82,7.50886077]
[1767836743827,20.64586534,136.88,136.83,0.70706509]
[1767836744138,22.83589741,136.88,136.83,0.70706509]
[1767836744297,23.51822021,136.88,136.84,0.70706509]
[1767836745903,13.34,136.88,136.84,0.70706509]
[1767836746107,9.49376907,136.92,136.87,0.70706509]
[1767836746320,9.49376907,136.92,136.88,0.70706509]
[1767836746321,7.303737,136.92,136.88,0.70706509]
[1767836749200,10.17557429,136.93,136.88,0.70706509]
[1767836749418,7.98554222,136.93,136.89,0.70706509]
[1767836749611,10.17557429,136.93,136.89,0.70706509]
[1767836755121,7.98554222,136.93,136.89,0.70706509]
[1767836755325,10.17557429,136.93,136.89,0.70706509]
[1767836755714,20.64259957,136.94,136.9,0.70706509]
[1767836756024,21.32492237,136.94,136.9,0.70706509]
[1767836757227,0.6823228,136.93,136.88,10.20254911]
[1767836757523,2.87235487,136.92,136.87,0.70706509]
[1767836757723,2.19003207,136.92,136.87,0.70706509]
[1767836757927,2.87235487,136.92,136.87,0.70706509]
[1767836758614,10.17607963,136.92,136.88,0.70706509]
[1767836762136,2.91145003,136.9,136.87,0.70463402]
[1767836762341,0.72141796,136.9,136.87,0.70463402]
[1767836762525,2.91145003,136.9,136.87,0.70463402]
[1767836764234,10.21621028,136.9,136.87,0.70463402]
[1767836765828,0.72141796,136.9,136.87,0.70463402]
[1767836766038,9.49433702,136.91,136.87,0.70463402]
[1767836766814,10.20366361,136.91,136.87,0.70463402]
[1767836768617,8.01363154,136.91,136.87,0.70463402]
[1767836769012,10.20366361,136.91,136.87,0.70463402]
[1767836774346,10.20397102,136.9,136.87,0.70463402]
[1767836774633,8.01393895,136.9,136.87,0.70463402]
[1767836775027,0.70932659,136.9,136.87,0.70463402]
[1767836776674,8.01360602,136.91,136.87,0.70463402]
[1767836776945,0.70932659,136.9,136.87,0.70463402]
[1767836777242,9.4943115,136.91,136.87,0.70463402]
[1767836777447,10.20363809,136.91,136.87,0.70463402]
[1767836777849,0.70932659,136.9,136.87,0.70463402]
[1767836788454,0.70932659,136.9,136.87,0.70463402]
[1767836789354,4.77463367,136.89,136.87,0.70463402]
[1767836789536,0.70932659,136.9,136.87,0.70463402]
[1767836789852,4.77463608,136.89,136.87,0.70463402]
[1767836790162,0.70932659,136.9,136.87,0.70463402]
[1767836790458,4.77472644,136.89,136.87,0.70463402]
[1767836790639,0.70932659,136.9,136.87,0.70463402]
[1767836790839,4.77673579,136.89,136.87,0.70463402]
[1767836791045,0.70932659,136.9,136.87,0.70463402]
[1767836791246,4.77678667,136.89,136.87,0.70463402]
[1767836791562,0.70932659,136.9,136.87,0.70463402]
[1767836791853,4.77680341,136.89,136.87,0.70463402]
[1767836792025,0.70932659,136.9,136.87,0.70463402]
[1767836792230,4.80005326,136.89,136.87,0.70463402]
[1767836792449,0.70932659,136.9,136.87,0.70463402]
[1767836792648,4.80021398,136.89,136.87,0.70463402]
[1767836792838,0.70932659,136.9,136.87,0.70463402]
[1767836793048,3.32021641,136.89,136.87,10.72532757]
[1767836793235,0.69853918,136.94,136.88,3.41940128]
[1767836793434,0.69853918,136.94,136.89,3.41940128]
[1767836794365,0.69853918,136.93,136.89,7.30513551]
[1767836797052,3.41940128,136.96,136.9,3.41940128]
[1767836797230,4.11794046,136.96,136.9,3.41940128]
[1767836798054,4.11794046,136.96,136.91,7.30406836]
[1767836799869,0.69853918,136.95,136.91,7.30406836]
[1767836801370,0.69853918,136.95,136.9,25.99259134]
[1767836802969,4.11794046,136.95,136.9,25.99259134]
[1767836804739,0.69853918,136.95,136.9,25.99259134]
[1767836806958,4.11794046,136.95,136.9,7.30460189]
[1767836807766,0.69853918,136.94,136.9,7.30460189]
[1767836808965,0.69853918,136.95,136.9,10.72400317]
[1767836809272,0.69853918,136.94,136.9,7.30460189]
[1767836809475,0.69853918,136.93,136.89,7.30505518]
[1767836809769,0.69853918,136.92,136.89,7.30505518]
[1767836810573,0.69853918,136.93,136.89,7.30505518]
[1767836811259,4.11794046,136.93,136.89,7.30505518]
[1767836811456,0.69853918,136.92,136.89,7.30505518]
[1767836812773,4.11794046,136.93,136.89,7.30505518]
[1767836813576,0.69853918,136.93,136.89,7.30505518]
[1767836822470,0.71544963,136.92,136.88,7.30548242]
[1767836822782,0.71544963,136.91,136.85,96.92694657]
[1767836823082,0.71544963,136.91,136.86,7.30625736]
[1767836823373,0.71544963,136.9,136.86,7.30625736]
[1767836823966,0.71544963,136.9,136.87,7.30617354]
[1767836824473,0.71544963,136.9,136.86,7.30673681]
[1767836824677,0.71544963,136.9,136.86,10.72613809]
[1767836828168,0.71544963,136.9,136.87,10.72530545]
[1767836829782,0.71544963,136.91,136.88,0.69382055]
[1767836829962,8.01927579,136.92,136.88,0.69382055]
[1767836830363,0.71544963,136.91,136.88,0.69382055]
[1767836831173,4.13485091,136.93,136.89,0.69382055]
[1767836831382,0.71544963,136.93,136.89,0.69382055]
[1767836831579,0.71544963,136.93,136.89,7.99864786]
[1767836833480,0.71544963,136.95,136.91,0.69382055]
[1767836834780,0.71544963,136.95,136.91,7.99774895]
[1767836836774,0.71544963,136.95,136.92,0.69382055]
[1767836838677,0.71544963,136.97,136.93,0.69382055]
[1767836838894,16.95940128,136.98,136.95,0.69382055]
[1767836838895,0.91544963,136.98,136.95,0.69382055]
[1767836840679,0.91544963,136.98,136.94,3.41940128]
[1767836840680,0.71544963,136.97,136.93,7.30277458]
[1767836841001,0.71544963,136.97,136.93,7.99659513]
[1767836842687,0.71544963,136.97,136.94,0.69382055]
[1767836843482,0.71544963,136.97,136.94,7.99622792]
[1767836845302,0.71544963,136.97,136.94,0.69382055]